bitfinex/quotes_BTCUSD_20241119
["timestamp","ask_amount","ask_price","bid_price","bid_amount"]
[1732033307819,0.0826,92360.0,92335.0,0.10906255]
[1732033308037,0.08980007,92365.0,92337.0,0.216597]
[1732033308283,0.216534,92364.0,92338.0,0.10906255]
[1732033308499,0.08980007,92365.0,92338.0,0.32684744]
[1732033308706,0.108271,92361.0,92338.0,0.11025344]
[1732033308924,0.108271,92361.0,92344.0,0.10829]
[1732033309152,0.108288,92347.0,92338.0,0.00119089]
[1732033309393,0.108284,92349.0,92345.0,0.00118766]
[1732033309623,0.324811,92361.0,92333.0,0.21736455]
[1732033309849,0.108283,92350.0,92333.0,0.21736455]
[1732033310103,0.12604113,92355.0,92334.0,0.00119075]
[1732033310355,0.108296,92340.0,92334.0,0.00119075]
[1732033310598,0.0495,92346.0,92334.0,0.00119075]
[1732033310812,0.108292,92343.0,92326.0,0.10831]
[1732033311082,0.108293,92342.0,92326.0,0.10831]
[1732033311296,0.108293,92342.0,92327.0,0.00118766]
[1732033311529,0.108293,92342.0,92324.0,0.31390841]
[1732033311530,0.108296,92339.0,92324.0,0.10906255]
[1732033311777,0.04377247,92346.0,92328.0,0.00118709]
[1732033312034,0.04377247,92346.0,92324.0,0.10906255]
[1732033312035,0.154875,92358.0,92340.0,0.108294]
[1732033312266,0.15203529,92357.0,92335.0,0.216602]
[1732033312494,0.0808,92362.0,92336.0,0.10906255]
[1732033312729,0.04325388,92360.0,92336.0,0.10906255]
[1732033312971,0.216545,92360.0,92337.0,0.00119018]
[1732033313187,0.108272,92360.0,92342.0,0.108292]
[1732033313413,0.12536354,92362.0,92343.0,0.10906255]
[1732033313691,0.108267,92365.0,92349.0,0.108284]
[1732033313907,0.108267,92365.0,92343.0,0.11025049]
[1732033313908,0.108267,92365.0,92348.0,0.108285]
[1732033314133,0.108267,92364.0,92350.0,0.00118737]
[1732033314274,0.108267,92364.0,92347.0,0.108286]
[1732033314477,0.0008547,92366.0,92343.0,0.10906255]
[1732033314478,0.108266,92365.0,92351.0,0.00118681]
[1732033314666,0.216534,92364.0,92343.0,0.10906255]
[1732033314887,0.108266,92365.0,92344.0,0.10947878]
[1732033315091,0.0008547,92366.0,92344.0,0.00118878]
[1732033315092,0.216534,92364.0,92344.0,0.00118878]
[1732033315524,0.108267,92364.0,92347.0,0.108286]
[1732033315735,0.216532,92365.0,92345.0,0.00117915]
[1732033315966,0.216534,92364.0,92348.0,0.0011783]
[1732033316233,0.216534,92364.0,92343.0,0.21735355]
[1732033316234,0.216534,92364.0,92349.0,0.00117802]
[1732033316452,0.216539,92362.0,92343.0,0.10906255]
[1732033316670,0.108274,92359.0,92344.0,0.00117887]
[1732033316884,0.0008547,92366.0,92345.0,0.10906255]
[1732033317108,0.216532,92365.0,92345.0,0.11024029]
[1732033317330,0.0008547,92366.0,92345.0,0.32681729]
[1732033317565,0.0008547,92366.0,92350.0,0.108283]
[1732033317791,0.0008547,92366.0,92346.0,0.00117943]
[1732033318038,0.0008547,92366.0,92351.0,0.00117802]
[1732033318263,0.0008547,92366.0,92343.0,0.10906255]
[1732033318264,0.12604113,92365.0,92343.0,0.10906255]
[1732033318499,0.12604113,92365.0,92340.0,0.001709]
[1732033318500,0.12604113,92365.0,92344.0,0.00117971]
[1732033318732,0.12604113,92365.0,92340.0,0.09849737]
[1732033318953,0.12604113,92365.0,92345.0,0.00117943]
[1732033319198,0.12604113,92365.0,92340.0,0.001709]
[1732033319199,0.12604113,92350.0,92340.0,0.001709]
[1732033319438,0.20114113,92365.0,92346.0,0.00117101]
[1732033319680,0.20114113,92365.0,92340.0,0.001709]
[1732033319899,0.20114113,92365.0,92347.0,0.00117073]
[1732033320153,0.12604113,92358.0,92340.0,0.001709]
[1732033321051,0.15556255,92357.0,92340.0,0.001709]
[1732033321691,0.12604113,92349.0,92340.0,0.001709]
[1732033321909,0.10906255,92348.0,92340.0,0.001709]
[1732033323457,0.04448198,92349.0,92340.0,0.001709]
[1732033323724,1.017244,92350.0,92340.0,0.001709]
[1732033323970,1.06203366,92350.0,92340.0,0.001709]
[1732033324415,0.10906255,92349.0,92340.0,0.001709]
[1732033324662,0.108294,92341.0,92340.0,0.001709]
[1732033325582,0.216572,92348.0,92340.0,0.001709]
[1732033325794,0.216576,92346.0,92340.0,0.001709]
[1732033326038,0.108294,92341.0,92340.0,0.001709]
[1732033327848,1.18892959,92350.0,92340.0,0.001709]
[1732033328067,1.06288846,92350.0,92340.0,0.001709]
[1732033328334,1.0180988,92350.0,92340.0,0.001709]
[1732033329481,0.108286,92348.0,92340.0,0.001709]
[1732033329698,0.12604113,92344.0,92340.0,0.001709]
[1732033329910,0.108294,92341.0,92340.0,0.001709]
[1732033330859,0.0822,92343.0,92340.0,0.001709]
[1732033331070,0.2232023,92358.0,92340.0,0.001709]
[1732033331071,0.0786,92354.0,92340.0,0.001709]
[1732033331289,0.0453,92360.0,92340.0,0.001709]
[1732033331521,0.075,92363.0,92345.0,0.108288]
[1732033331804,0.075,92363.0,92341.0,0.1102664]
[1732033331805,0.075,92363.0,92346.0,0.10948944]
[1732033332468,0.2173847,92366.0,92349.0,0.108284]
[1732033332469,0.0008547,92366.0,92349.0,0.108284]
[1732033332901,0.0008547,92366.0,92349.0,0.21853909]
[1732033333584,0.0008547,92366.0,92349.0,0.29723909]
[1732033334253,0.9290988,92350.0,92349.0,0.21853909]
[1732033337107,0.9290988,92350.0,92349.0,0.00119254]
[1732033337347,1.27248548,92350.0,92349.0,0.00119254]
[1732033337610,0.108294,92341.0,92340.0,0.001709]
[1732033337828,0.183294,92341.0,92340.0,0.001709]
[1732033340343,0.075,92341.0,92340.0,0.001709]
[1732033341493,1.1654828,92350.0,92340.0,0.001709]
[1732033342261,0.108286,92348.0,92340.0,0.001709]
[1732033342518,1.0571988,92350.0,92340.0,0.001709]
[1732033342781,1.1654828,92350.0,92340.0,0.001709]
[1732033343057,1.0571988,92350.0,92340.0,0.001709]
[1732033343284,0.216569,92349.0,92340.0,0.001709]
[1732033343776,0.216572,92348.0,92340.0,0.001709]
[1732033343996,1.0571988,92350.0,92340.0,0.001709]
[1732033344449,0.9290988,92350.0,92340.0,0.001709]
[1732033344895,0.9290988,92350.0,92343.0,0.108291]
[1732033345111,0.9290988,92350.0,92342.0,0.216586]
[1732033345325,0.9290988,92350.0,92345.0,0.216579]
[1732033345566,0.9290988,92350.0,92346.0,0.108288]
[1732033345807,0.9290988,92350.0,92349.0,0.108284]
[1732033346046,0.9290988,92350.0,92346.0,0.11019324]
[1732033346047,0.9290988,92350.0,92346.0,0.00113069]
[1732033346512,0.9290988,92350.0,92338.0,0.0782]
[1732033346728,0.9290988,92350.0,92337.0,0.216595]
[1732033346729,0.9290988,92350.0,92341.0,0.21735555]
[1732033346953,0.9290988,92350.0,92342.0,0.108292]
[1732033347172,0.9290988,92350.0,92343.0,0.00112222]
[1732033347725,0.9290988,92350.0,92346.0,0.108287]
[1732033347974,0.9290988,92350.0,92344.0,0.216581]
[1732033347975,0.9290988,92350.0,92345.0,0.108289]
[1732033348227,0.9290988,92350.0,92346.0,0.00112138]
[1732033348914,0.9290988,92350.0,92341.0,0.10906255]
[1732033349132,0.8400988,92350.0,92341.0,0.10906255]
[1732033349579,0.8400988,92350.0,92340.0,0.001709]
[1732033349580,0.108293,92342.0,92340.0,0.001709]
[1732033349796,0.8400988,92350.0,92340.0,0.001709]
[1732033349797,0.216569,92349.0,92340.0,0.001709]
[1732033350263,0.108289,92346.0,92340.0,0.001709]
[1732033350503,0.108288,92346.0,92340.0,0.001709]
[1732033350725,0.108289,92346.0,92340.0,0.001709]
[1732033351401,0.216569,92349.0,92340.0,0.001709]
[1732033351620,0.108288,92346.0,92340.0,0.001709]
[1732033352021,0.8400988,92350.0,92340.0,0.001709]
[1732033352436,0.108289,92346.0,92340.0,0.001709]
[1732033352648,0.8400988,92350.0,92340.0,0.001709]
[1732033352649,0.216582,92344.0,92340.0,0.001709]
[1732033352859,0.108292,92343.0,92340.0,0.001709]
[1732033353486,0.10829,92344.0,92340.0,0.001709]
[1732033353756,0.8400988,92350.0,92340.0,0.001709]
[1732033353948,0.216569,92349.0,92340.0,0.001709]
[1732033354157,0.108291,92344.0,92340.0,0.001709]
[1732033354396,0.216569,92349.0,92340.0,0.001709]
[1732033354397,0.8400988,92350.0,92340.0,0.001709]
[1732033355082,0.9483828,92350.0,92340.0,0.001709]
[1732033355313,0.108287,92347.0,92340.0,0.001709]
[1732033357487,0.88443566,92350.0,92340.0,0.001709]
[1732033357983,0.108287,92348.0,92340.0,0.001709]
[1732033358208,0.108288,92346.0,92340.0,0.001709]
[1732033359275,0.216569,92349.0,92340.0,0.001709]
[1732033359503,0.108287,92347.0,92340.0,0.001709]
[1732033359719,0.108288,92346.0,92340.0,0.001709]
[1732033359932,0.216574,92347.0,92340.0,0.001709]
[1732033360155,0.108294,92341.0,92340.0,0.001709]
[1732033360358,0.108287,92347.0,92340.0,0.001709]
[1732033360572,0.216569,92349.0,92340.0,0.001709]
[1732033360789,0.216569,92349.0,92329.0,0.1074676]
[1732033360790,0.108288,92347.0,92329.0,0.1074676]
[1732033360996,0.108288,92346.0,92330.0,0.00107324]
[1732033361864,0.216569,92349.0,92330.0,0.00107324]
[1732033362095,0.108286,92348.0,92331.0,0.108305]
[1732033362307,0.108287,92347.0,92330.0,0.10937924]
[1732033362512,0.108287,92347.0,92340.0,0.0008547]
[1732033362762,0.88443566,92350.0,92340.0,0.0008547]
[1732033362969,0.108293,92342.0,92340.0,0.0008547]
[1732033363214,0.108294,92341.0,92340.0,0.0008547]
[1732033363442,0.216569,92349.0,92340.0,0.0008547]
[1732033363663,0.108284,92349.0,92340.0,0.0008547]
[1732033363868,0.88443566,92350.0,92340.0,0.0008547]
[1732033364081,0.216586,92343.0,92340.0,0.0008547]
[1732033364515,0.324878,92343.0,92340.0,0.0008547]
[1732033364726,0.108292,92343.0,92340.0,0.0008547]
[1732033366280,0.10829,92345.0,92340.0,0.0008547]
[1732033366709,0.88443566,92350.0,92340.0,0.0008547]
[1732033367126,0.10829,92345.0,92340.0,0.0008547]
[1732033367353,0.216573,92348.0,92340.0,0.0008547]
[1732033367583,0.10829,92345.0,92340.0,0.0008547]
[1732033367833,0.216573,92348.0,92340.0,0.0008547]
[1732033368063,0.10829,92345.0,92340.0,0.0008547]
[1732033369206,0.88443566,92350.0,92340.0,0.0008547]
[1732033369655,0.8400988,92350.0,92340.0,0.0008547]
[1732033369886,0.8400988,92350.0,92341.0,0.00106772]
[1732033370101,0.8400988,92350.0,92340.0,0.0008547]
[1732033371006,0.8400988,92350.0,92342.0,0.216586]
[1732033371233,0.8400988,92350.0,92342.0,0.10906255]
[1732033371480,0.8400988,92350.0,92343.0,0.00106715]
[1732033371952,0.8400988,92350.0,92340.0,0.2174427]
[1732033372167,0.8400988,92350.0,92344.0,0.00106687]
[1732033372399,0.8400988,92350.0,92340.0,0.0008547]
[1732033372619,0.8400988,92350.0,92341.0,0.00106772]
[1732033372811,0.8400988,92350.0,92343.0,0.108291]
[1732033373050,0.8400988,92350.0,92341.0,0.00106772]
[1732033373302,0.8400988,92350.0,92344.0,0.00106687]
[1732033373515,0.8400988,92350.0,92340.0,0.1091487]
[1732033373945,0.8400988,92350.0,92341.0,0.00106772]
[1732033374388,0.8400988,92350.0,92342.0,0.216586]
[1732033374595,0.8400988,92350.0,92343.0,0.00106715]
[1732033374808,0.8400988,92350.0,92341.0,0.108294]
[1732033375039,0.8400988,92350.0,92341.0,0.10936172]
[1732033375484,0.8400988,92350.0,92341.0,0.00106772]
[1732033375695,0.8400988,92350.0,92341.0,0.10936172]
[1732033376137,0.8400988,92350.0,92341.0,0.00106772]
[1732033376562,0.8400988,92350.0,92342.0,0.108293]
[1732033376820,0.8400988,92350.0,92343.0,0.00106715]
[1732033377471,0.8400988,92350.0,92343.0,0.10935815]
[1732033378204,0.8400988,92350.0,92343.0,0.00106715]
[1732033378443,0.8400988,92350.0,92344.0,0.108289]
[1732033378648,0.8400988,92350.0,92344.0,0.00106687]
[1732033379080,0.7510988,92350.0,92344.0,0.10829]
[1732033379291,0.7510988,92350.0,92345.0,0.00106659]
[1732033379715,0.7510988,92350.0,92349.0,0.108284]
[1732033380144,0.7510988,92350.0,92349.0,0.10934947]
[1732033380824,0.7510988,92350.0,92349.0,0.00106547]
[1732033381299,0.7510988,92350.0,92340.0,0.0008547]
[1732033381770,0.7510988,92350.0,92341.0,0.00106772]
[1732033381989,0.7510988,92350.0,92332.0,0.14532211]
[1732033382230,0.7510988,92350.0,92336.0,0.108299]
[1732033382439,0.7510988,92350.0,92337.0,0.21736055]
[1732033382684,0.7510988,92350.0,92337.0,0.10906255]
[1732033383187,0.7510988,92350.0,92339.0,0.108295]
[1732033383395,0.7510988,92350.0,92337.0,0.10906255]
[1732033384297,0.7510988,92350.0,92338.0,0.108297]
[1732033384771,0.7510988,92350.0,92337.0,0.10906255]
[1732033384984,0.7510988,92350.0,92337.0,0.21907015]
[1732033385197,0.7510988,92350.0,92339.0,0.108296]
[1732033385664,0.7510988,92350.0,92337.0,0.11077215]
[1732033385921,0.7510988,92350.0,92337.0,0.21907015]
[1732033386145,0.7510988,92350.0,92337.0,0.11077215]
[1732033386371,0.7510988,92350.0,92337.0,0.21907015]
[1732033386599,0.7510988,92350.0,92337.0,0.11077215]
[1732033386842,0.108285,92349.0,92337.0,0.11077215]
[1732033387057,0.108293,92342.0,92337.0,0.0017096]
[1732033387303,0.076,92341.0,92337.0,0.0017096]
[1732033389365,0.9676678,92350.0,92337.0,0.0017096]
[1732033389366,0.7510988,92350.0,92338.0,0.10906255]
[1732033389581,0.7510988,92350.0,92339.0,0.108296]
[1732033389788,0.7510988,92350.0,92345.0,0.108288]
[1732033389994,0.7510988,92350.0,92340.0,0.32565255]
[1732033390203,0.7510988,92350.0,92341.0,0.00216564]
[1732033390420,0.7510988,92350.0,92349.0,0.108284]
[1732033390906,0.7510988,92350.0,92342.0,0.10906255]
[1732033391162,0.7510988,92350.0,92344.0,0.10829]
[1732033391375,0.7510988,92350.0,92337.0,0.0017096]
[1732033391589,0.7510988,92350.0,92343.0,0.10829]
[1732033392479,0.7510988,92350.0,92341.0,0.10906255]
[1732033392697,0.7510988,92350.0,92343.0,0.108291]
[1732033393629,0.7510988,92350.0,92341.0,0.20593231]
[1732033394073,0.6620988,92350.0,92343.0,0.108291]
[1732033394535,0.6620988,92350.0,92344.0,0.108289]
[1732033394758,0.6620988,92350.0,92341.0,0.10906255]
[1732033394983,0.6620988,92350.0,92346.0,0.108287]
[1732033395223,0.6620988,92350.0,92342.0,0.216585]
[1732033395445,0.6620988,92350.0,92341.0,0.10906255]
[1732033395666,0.6620988,92350.0,92342.0,0.216586]
[1732033396148,0.6620988,92350.0,92344.0,0.10829]
[1732033396584,0.6620988,92350.0,92343.0,0.108291]
[1732033396707,0.6620988,92350.0,92342.0,0.10279662]
[1732033396944,0.6620988,92350.0,92341.0,0.10906255]
[1732033397150,0.6620988,92350.0,92343.0,0.108291]
[1732033397363,0.6620988,92350.0,92341.0,0.10906255]
[1732033397779,0.0781,92349.0,92337.0,0.09856658]
[1732033397996,0.216575,92347.0,92337.0,0.0017096]
[1732033398219,0.0483,92348.0,92337.0,0.0017096]
[1732033398220,0.216576,92346.0,92337.0,0.0017096]
[1732033398449,0.108291,92344.0,92337.0,0.0017096]
[1732033398862,0.216576,92346.0,92337.0,0.0017096]
[1732033399145,0.108289,92345.0,92337.0,0.0017096]
[1732033399375,0.108287,92347.0,92337.0,0.0017096]
[1732033399565,0.0483,92348.0,92337.0,0.0017096]
[1732033399715,0.108288,92347.0,92337.0,0.0017096]
[1732033400159,0.6620988,92350.0,92337.0,0.0017096]
[1732033400380,0.6620988,92350.0,92338.0,0.10906255]
[1732033400595,0.6620988,92350.0,92343.0,0.108291]
[1732033401055,0.6620988,92350.0,92341.0,0.108293]
[1732033401310,0.6620988,92350.0,92338.0,0.10906255]
[1732033401508,0.6620988,92350.0,92340.0,0.108294]
[1732033401927,0.6620988,92350.0,92338.0,0.10906255]
[1732033402138,0.6620988,92350.0,92339.0,0.108295]
[1732033402575,0.6620988,92350.0,92338.0,0.10906255]
[1732033402797,0.6620988,92350.0,92337.0,0.09854964]
[1732033403025,0.6620988,92350.0,92337.0,0.0017096]
[1732033403260,0.10829,92344.0,92337.0,0.0017096]
[1732033403476,0.6620988,92350.0,92337.0,0.0017096]
[1732033403692,0.108293,92342.0,92337.0,0.0017096]
[1732033403983,0.216576,92346.0,92337.0,0.0017096]
[1732033404196,0.6620988,92350.0,92337.0,0.0017096]
[1732033404406,0.108297,92338.0,92337.0,0.0017096]
[1732033404646,0.186297,92338.0,92337.0,0.0017096]
[1732033404856,0.232297,92338.0,92337.0,0.0017096]
[1732033405535,0.124,92338.0,92337.0,0.0017096]
[1732033405761,0.18629,92345.0,92337.0,0.0017096]
[1732033406183,0.10829,92344.0,92337.0,0.0017096]
[1732033406392,0.078,92345.0,92337.0,0.0017096]
[1732033406607,0.046,92348.0,92337.0,0.11077215]
[1732033407023,0.046,92348.0,92337.0,0.0017096]
[1732033407890,0.046,92348.0,92338.0,0.108297]
[1732033408550,0.046,92348.0,92337.0,0.0017096]
[1732033409275,0.0786,92352.0,92337.0,0.1100076]
[1732033409687,0.0786,92352.0,92338.0,0.0017104]
[1732033409903,0.0008552,92350.0,92344.0,0.108289]
[1732033410145,0.0008552,92350.0,92348.0,0.108285]
[1732033410430,0.0008552,92350.0,92345.0,0.10906255]
[1732033410644,0.0008552,92350.0,92346.0,0.324864]
[1732033410882,0.0008552,92350.0,92347.0,0.216572]
[1732033411093,0.0008552,92350.0,92349.0,0.108284]
[1732033411509,0.0008552,92350.0,92340.0,0.09697391]
[1732033411733,0.0008552,92350.0,92338.0,0.0017104]
[1732033411942,0.0008552,92350.0,92339.0,0.10906255]
[1732033412401,0.108296,92339.0,92338.0,0.0017104]
[1732033412657,0.216572,92348.0,92338.0,0.0017104]
[1732033412884,0.108288,92346.0,92338.0,0.0017104]
[1732033413106,0.108296,92339.0,92338.0,0.0017104]
[1732033413348,0.216574,92347.0,92338.0,0.0017104]
[1732033413560,0.108292,92343.0,92338.0,0.0017104]
[1732033414885,0.216576,92346.0,92338.0,0.0017104]
[1732033415109,0.10829,92345.0,92338.0,0.0017104]
[1732033415333,0.10829,92344.0,92338.0,0.0017104]
[1732033416294,0.0776,92349.0,92338.0,0.0017104]
[1732033416505,0.108288,92347.0,92338.0,0.0017104]
[1732033417875,0.108288,92346.0,92338.0,0.0017104]
[1732033418136,0.0776,92349.0,92338.0,0.0017104]
[1732033418594,0.108296,92339.0,92338.0,0.0017104]
[1732033419035,0.216572,92348.0,92338.0,0.0017104]
[1732033419036,0.216565,92351.0,92338.0,0.0017104]
[1732033419278,0.0917522,92350.0,92338.0,0.0017104]
[1732033419545,0.0450522,92350.0,92338.0,0.0017104]
[1732033420042,0.0008552,92350.0,92340.0,0.108294]
[1732033420509,0.0008552,92350.0,92338.0,0.0017104]
[1732033420732,0.0008552,92350.0,92338.0,0.1100074]
[1732033420954,0.0008552,92350.0,92338.0,0.0017104]
[1732033421179,0.108286,92348.0,92338.0,0.0017104]
[1732033421410,0.0008552,92350.0,92338.0,0.0017104]
[1732033422057,0.0008552,92350.0,92339.0,0.108296]
[1732033422275,0.0008552,92350.0,92338.0,0.0017104]
[1732033422721,0.0008552,92350.0,92338.0,0.11077295]
[1732033422932,0.0008552,92350.0,92342.0,0.108293]
[1732033423651,0.0008552,92350.0,92339.0,0.216593]
[1732033423868,0.0008552,92350.0,92342.0,0.108292]
[1732033424079,0.108273,92359.0,92343.0,0.108291]
[1732033424499,0.15140909,92359.0,92341.0,0.324881]
[1732033424729,0.04313609,92359.0,92339.0,0.541482]
[1732033424976,0.108272,92360.0,92339.0,0.32565555]
[1732033425185,0.108274,92358.0,92340.0,0.108295]
[1732033425399,0.108272,92360.0,92341.0,0.216588]
[1732033425616,0.108272,92360.0,92339.0,0.32565555]
[1732033425846,0.04393785,92365.0,92341.0,0.108293]
[1732033425847,0.108274,92358.0,92341.0,0.108293]
[1732033426507,0.108274,92358.0,92342.0,0.108293]
[1732033426750,0.108274,92358.0,92340.0,0.324884]
[1732033427014,0.108275,92358.0,92340.0,0.21659]
[1732033427232,0.108275,92358.0,92342.0,0.108293]
[1732033427445,0.108275,92358.0,92340.0,0.324884]
[1732033427689,0.0751,92363.0,92340.0,0.21659]
[1732033427909,0.0008545,92365.0,92364.0,0.108267]
[1732033428126,0.0008545,92365.0,92364.0,0.21732955]
[1732033428607,0.0008545,92365.0,92364.0,0.44413524]
[1732033428865,0.0017106,92397.0,92396.0,0.108229]
[1732033429352,0.0017106,92397.0,92391.0,0.216469]
[1732033429594,0.0017106,92397.0,92387.0,0.1304]
[1732033429595,0.0017106,92397.0,92395.0,0.10823]
[1732033429822,0.0017106,92397.0,92396.0,0.108229]
[1732033430369,0.0017106,92397.0,92390.0,0.216473]
[1732033430606,0.0017106,92397.0,92392.0,0.108234]
[1732033431045,0.0017106,92397.0,92384.0,0.216485]
[1732033431271,0.0017106,92397.0,92387.0,0.108239]
[1732033431540,0.0017106,92397.0,92385.0,0.108242]
[1732033431754,0.0017106,92397.0,92383.0,0.108244]
[1732033431961,0.0017106,92397.0,92377.0,0.0828]
[1732033432184,0.0017106,92397.0,92380.0,0.108247]
[1732033432417,0.0017106,92397.0,92382.0,0.108245]
[1732033432643,0.0017106,92397.0,92381.0,0.108247]
[1732033433289,0.12604113,92394.0,92365.0,0.09648674]
[1732033433509,0.12604113,92394.0,92370.0,0.32478]
[1732033433736,0.12604113,92394.0,92376.0,0.108252]
[1732033433968,0.12604113,92394.0,92372.0,0.216515]
[1732033433969,0.12604113,92394.0,92375.0,0.108254]
[1732033434178,0.0017106,92397.0,92375.0,0.108254]
[1732033434860,0.12604113,92394.0,92365.0,0.1]
[1732033435129,0.10824,92387.0,92366.0,0.10906255]
[1732033435396,0.108238,92389.0,92367.0,0.208263]
[1732033435635,0.108238,92389.0,92370.0,0.10826]
[1732033435852,0.108238,92389.0,92371.0,0.108259]
[1732033437039,0.216487,92384.0,92359.0,0.216546]
[1732033437248,0.216487,92384.0,92350.0,0.216567]
[1732033437249,0.12604113,92377.0,92350.0,0.216567]
[1732033437464,0.12604113,92377.0,92341.0,0.0117102]
[1732033437465,0.12604113,92369.0,92352.0,0.10906255]
[1732033437940,0.10826,92370.0,92352.0,0.21734255]
[1732033438165,0.108257,92373.0,92352.0,0.10906255]
[1732033438401,0.108257,92373.0,92353.0,0.32484]
[1732033438623,0.108257,92373.0,92355.0,0.108277]
[1732033438846,0.108255,92375.0,92354.0,0.324837]
[1732033439122,0.108256,92374.0,92356.0,0.108276]
[1732033439320,0.12604113,92376.0,92353.0,0.10906255]
[1732033439550,0.108258,92372.0,92353.0,0.10906255]
[1732033439776,0.108258,92372.0,92354.0,0.108277]
[1732033440004,0.23429513,92376.0,92357.0,0.108275]
[1732033440276,0.108254,92375.0,92357.0,0.108275]
[1732033440803,0.12604113,92376.0,92353.0,0.10906255]
[1732033441011,0.12604113,92376.0,92353.0,0.21734155]
[1732033441237,0.108257,92373.0,92354.0,0.108277]
[1732033441484,0.12604113,92369.0,92353.0,0.10906255]
[1732033441727,0.20664113,92360.0,92342.0,0.216584]
[1732033441944,0.20664113,92360.0,92343.0,0.31735355]
[1732033442159,0.20664113,92360.0,92341.0,0.0017102]
[1732033442508,0.108275,92357.0,92341.0,0.0017102]
[1732033442743,0.20664113,92360.0,92341.0,0.0017102]
[1732033442947,0.20664113,92360.0,92342.0,0.216586]
[1732033443156,0.20664113,92360.0,92341.0,0.0017102]
[1732033443378,0.0806,92360.0,92350.0,0.108283]
[1732033443602,0.12604113,92367.0,92341.0,0.0017102]
[1732033443823,0.0779,92371.0,92343.0,0.108291]
[1732033444059,0.0779,92371.0,92354.0,0.108278]
[1732033444284,0.12604113,92367.0,92341.0,0.0017102]
[1732033444505,0.12604113,92367.0,92341.0,0.11077275]
[1732033444718,0.12604113,92360.0,92344.0,0.108289]
[1732033444933,0.12604113,92360.0,92341.0,0.11077275]
[1732033444934,0.108273,92359.0,92341.0,0.11077275]
[1732033445153,0.108273,92359.0,92341.0,0.21906575]
[1732033445640,0.12604113,92360.0,92343.0,0.108291]
[1732033446272,0.12604113,92360.0,92341.0,0.15454348]
[1732033446273,0.12604113,92360.0,92345.0,0.108288]
[1732033446542,0.12604113,92360.0,92346.0,0.108288]
[1732033446779,0.32558355,92370.0,92342.0,0.324879]
[1732033446780,0.12604113,92368.0,92342.0,0.324879]
[1732033447006,0.12604113,92368.0,92341.0,0.15454348]
[1732033447007,0.12604113,92368.0,92349.0,0.108284]
[1732033447254,0.12604113,92368.0,92354.0,0.0017098]
[1732033447255,0.108264,92366.0,92354.0,0.0017098]
[1732033447452,0.12604113,92368.0,92354.0,0.0017098]
[1732033447679,0.0779,92371.0,92359.0,0.108273]
[1732033447916,0.0779,92371.0,92355.0,0.108277]
[1732033448116,0.0779,92371.0,92354.0,0.0017098]
[1732033448325,0.0008549,92375.0,92357.0,0.108275]
[1732033448549,0.0008549,92375.0,92355.0,0.10906255]
[1732033448550,0.0008549,92375.0,92364.0,0.108266]
[1732033448734,0.0008549,92375.0,92365.0,0.108265]
[1732033448976,0.0008549,92375.0,92360.0,0.10906255]
[1732033449227,0.0008549,92375.0,92364.0,0.108266]
[1732033449427,0.0008549,92375.0,92360.0,0.10906255]
[1732033449641,0.0008549,92375.0,92365.0,0.10906255]
[1732033449837,0.0008549,92375.0,92354.0,0.0117098]
[1732033450062,0.0008549,92375.0,92358.0,0.1]
[1732033450268,0.0008549,92375.0,92361.0,0.10827]
[1732033450486,0.04526725,92375.0,92356.0,0.1]
[1732033450728,0.0008549,92375.0,92362.0,0.108268]
[1732033450940,0.0008549,92375.0,92365.0,0.108265]
[1732033451139,0.0008549,92375.0,92356.0,0.1]
[1732033451352,0.0008549,92375.0,92374.0,0.108255]
[1732033451797,0.0008549,92375.0,92374.0,0.21731755]
[1732033452021,0.0008549,92375.0,92374.0,0.32731755]
[1732033452226,0.0008549,92375.0,92374.0,0.38100831]
[1732033452856,0.0008549,92375.0,92374.0,0.43060831]
[1732033453111,0.0008549,92375.0,92374.0,0.42060831]
[1732033453304,0.0008549,92375.0,92374.0,0.43060831]
[1732033453936,0.0008549,92375.0,92374.0,0.42060831]
[1732033454162,0.2317655,92400.0,92381.0,0.216494]
[1732033454398,0.2317655,92400.0,92386.0,0.1]
[1732033454616,0.2317655,92400.0,92388.0,0.108239]
[1732033454832,0.2317655,92400.0,92386.0,0.1]
[1732033454833,0.2317655,92400.0,92389.0,0.108237]
[1732033455254,0.2317655,92400.0,92390.0,0.108236]
[1732033456160,0.2317655,92400.0,92385.0,0.1]
[1732033456367,0.2317655,92400.0,92387.0,0.108239]
[1732033456572,0.2317655,92400.0,92388.0,0.108238]
[1732033457000,0.2317655,92400.0,92394.0,0.108232]
[1732033457244,0.2317655,92400.0,92394.0,0.216463]
[1732033457465,0.2317655,92400.0,92394.0,0.108231]
[1732033457685,0.2317655,92400.0,92383.0,0.20906255]
[1732033457908,0.2317655,92400.0,92399.0,0.108226]
[1732033458348,0.2317655,92400.0,92384.0,0.10906255]
[1732033458766,0.2317655,92400.0,92385.0,0.1]
[1732033458965,0.2317655,92400.0,92399.0,0.108226]
[1732033459119,0.2317655,92400.0,92394.0,0.216463]
[1732033459323,0.2317655,92400.0,92396.0,0.216457]
[1732033459599,0.2317655,92400.0,92399.0,0.108226]
[1732033460426,0.2326204,92400.0,92399.0,0.108226]
[1732033462090,0.2326204,92400.0,92399.0,0.21728855]
[1732033466235,0.2326204,92400.0,92399.0,0.31728855]
[1732033468423,0.0004,92419.0,92418.0,0.108204]
[1732033468649,0.0004,92419.0,92418.0,0.21726655]
[1732033469059,0.0008555,92435.0,92418.0,0.21726655]
[1732033469060,0.04421575,92448.0,92426.0,0.0753]
[1732033469277,0.108162,92454.0,92437.0,0.10818]
[1732033469474,0.21864832,92451.0,92427.0,0.10906255]
[1732033469682,0.21864832,92451.0,92438.0,0.108179]
[1732033469905,0.21864832,92451.0,92429.0,0.216382]
[1732033469906,0.12604113,92449.0,92429.0,0.216382]
[1732033470312,0.12604113,92449.0,92433.0,0.108185]
[1732033470519,0.12604113,92449.0,92428.0,0.216384]
[1732033470744,0.12604113,92449.0,92429.0,0.216382]
[1732033470980,0.12604113,92449.0,92422.0,0.108199]
[1732033470981,0.23420913,92449.0,92422.0,0.108199]
[1732033471226,0.23420913,92449.0,92419.0,0.1]
[1732033471227,0.12604113,92449.0,92423.0,0.10906255]
[1732033471451,0.12604113,92440.0,92419.0,0.1]
[1732033471661,0.108179,92439.0,92422.0,0.1]
[1732033471877,0.12604113,92440.0,92424.0,0.108196]
[1732033472083,0.0825,92439.0,92425.0,0.108195]
[1732033472307,0.108181,92438.0,92423.0,0.1]